fUSD/lending_fUSD_20240618
["ID","MTS","AMOUNT","RATE_DAILY","PERIOD"]
[329828985,1718719849499,-290.281892,0.00014,2]
[329828986,1718719849508,-151.0,0.00014,2]
[329828987,1718719849517,-151.0,0.00014,2]
[329828988,1718719849713,-151.0,0.00014,2]
[329828989,1718719849725,-151.0,0.00014,2]
[329828990,1718719849734,-151.0,0.00014,2]
[329828991,1718719849743,-151.0,0.00014,2]
[329828992,1718719849753,-215.987374,0.00014,2]
[329828993,1718719849763,-215.987374,0.00014,2]
[329828994,1718719849773,-215.987374,0.00014,2]
[329828995,1718719849783,-215.987374,0.00014,2]
[329828996,1718719849792,-215.987374,0.00014,2]
[329828997,1718719849802,-215.987374,0.00014,2]
[329828998,1718719849811,-151.0,0.00014,2]
[329828999,1718719849820,-151.0,0.00014,2]
[329829000,1718719849830,-211.337278,0.00014,2]
[329829001,1718719849839,-151.0,0.00014,2]
[329829002,1718719849849,-151.0,0.00014,2]
[329829003,1718719849859,-164.067862,0.00014,2]
[329829004,1718719849868,-151.0,0.00014,2]
[329829005,1718719849878,-151.0,0.00014,2]
[329829006,1718719849888,-151.0,0.00014,2]
[329829007,1718719849901,-151.0,0.00014,2]
[329829008,1718719849910,-151.0,0.00014,2]
[329829009,1718719849920,-211.922726,0.00014,2]
[329829010,1718719849929,-211.922726,0.00014,2]
[329829011,1718719849938,-151.0,0.00014,2]
[329829012,1718719849948,-211.922726,0.00014,2]
[329829013,1718719849957,-151.0,0.00014,2]
[329829014,1718719849967,-194.844269,0.00014,2]
[329829015,1718719849977,-151.0,0.00014,2]
[329829016,1718719849986,-151.0,0.00014,2]
[329829017,1718719849996,-245.770184,0.00014,2]
[329829018,1718719850005,-211.922726,0.00014,2]
[329829019,1718719850020,-211.922726,0.00014,2]
[329829020,1718719850029,-211.922726,0.00014,2]
[329829021,1718719850039,-151.0,0.00014,2]
[329829022,1718719850048,-151.0,0.00014,2]
[329829023,1718719850057,-151.0,0.00014,2]
[329829024,1718719850066,-151.0,0.00014,2]
[329829025,1718719850076,-151.0,0.00014,2]
[329829026,1718719850085,-209.165501,0.00014,2]
[329829027,1718719850095,-1908.41,0.00014005,2]
[329829028,1718719850104,-288.58,0.00014009,2]
[329829029,1718719850113,-1000.0,0.00014051,2]
[329829030,1718719850123,-2000.0,0.0001412,2]
[329829031,1718719850132,-200.0,0.0001412,2]
[329829032,1718719850141,-28714.93429932,0.00014172,2]
[329829033,1718719850155,-201.077588,0.00014172,2]
[329829034,1718719850164,-201.077588,0.00014172,2]
[329829035,1718719850173,-151.0,0.00014172,2]
[329829036,1718719850182,-592.426673,0.00014172,2]
[329829037,1718719850191,-592.426673,0.00014172,2]
[329829038,1718719850201,-151.0,0.00014172,2]
[329829039,1718719850211,-686.635475,0.00014172,2]
[329829040,1718719850221,-686.635475,0.00014172,2]
[329829041,1718719850230,-151.0,0.00014172,2]
[329829042,1718719850239,-251.266054,0.00014172,2]
[329829043,1718719850249,-813.70664,0.00014172,2]
[329829044,1718719850258,-813.70664,0.00014172,2]
[329829045,1718719850267,-151.0,0.00014172,2]
[329829046,1718719850276,-151.0,0.00014172,2]
[329829047,1718719850286,-151.0,0.00014172,2]
[329829048,1718719850295,-151.0,0.00014172,2]
[329829049,1718719850305,-2015.816401,0.00014172,2]
[329829050,1718719850314,-2015.816401,0.00014172,2]
[329829051,1718719850324,-902.430821,0.00014172,2]
[329829052,1718719850333,-244.921967,0.00014172,2]
[329829053,1718719850343,-154.03553,0.00014172,2]
[329829054,1718719850352,-244.921967,0.00014172,2]
[329829055,1718719850362,-154.03553,0.00014172,2]
[329829056,1718719850372,-902.430821,0.00014172,2]
[329829057,1718719850381,-151.0,0.00014172,2]
[329829058,1718719850391,-922.303996,0.00014172,2]
[329829059,1718719850406,-922.303996,0.00014172,2]
[329829060,1718719850416,-366.808012,0.00014172,2]
[329829061,1718719850425,-366.808012,0.00014172,2]
[329829062,1718719850436,-306.036353,0.00014172,2]
[329829063,1718719850446,-306.036353,0.00014172,2]
[329829064,1718719850456,-702.07055,0.00014172,2]
[329829065,1718719850465,-702.07055,0.00014172,2]
[329829066,1718719850475,-159.322105,0.00014172,2]
[329829067,1718719850485,-151.0,0.00014172,2]
[329829068,1718719850495,-290.527149,0.00014172,2]
[329829069,1718719850505,-290.527149,0.00014172,2]
[329829070,1718719850514,-151.0,0.00014172,2]
[329829071,1718719850524,-151.0,0.00014172,2]
[329829072,1718719850534,-151.0,0.00014172,2]
[329829073,1718719850544,-662.687706,0.00014172,2]
[329829074,1718719850553,-151.0,0.00014172,2]
[329829075,1718719850562,-775.784967,0.00014172,2]
[329829076,1718719850572,-662.687706,0.00014172,2]
[329829077,1718719850582,-151.0,0.00014172,2]
[329829078,1718719850592,-775.784967,0.00014172,2]
[329829079,1718719850602,-151.0,0.00014172,2]
[329829080,1718719850611,-169.797947,0.00014172,2]
[329829081,1718719850622,-1006.366818,0.00014172,2]
[329829082,1718719850632,-1006.366818,0.00014172,2]
[329829083,1718719850642,-151.0,0.00014172,2]
[329829084,1718719850660,-151.0,0.00014172,2]
[329829085,1718719850671,-151.0,0.00014172,2]
[329829086,1718719850681,-4969.232691,0.00014172,2]
[329829087,1718719850694,-216.477484,0.00014172,2]
[329829088,1718719850703,-4969.232691,0.00014172,2]
[329829089,1718719850714,-151.0,0.00014172,2]
[329829090,1718719850724,-1171.268218,0.00014172,2]
[329829091,1718719850734,-1171.268218,0.00014172,2]
[329829092,1718719850744,-151.0,0.00014172,2]
[329829093,1718719850754,-151.0,0.00014172,2]
[329829094,1718719850765,-215.987374,0.00014172,2]
[329829095,1718719850775,-215.987374,0.00014172,2]
[329829096,1718719850786,-151.0,0.00014172,2]
[329829097,1718719850795,-151.0,0.00014172,2]
[329829098,1718719850805,-211.922726,0.00014172,2]
[329829099,1718719850815,-211.922726,0.00014172,2]
[329829100,1718719850825,-151.0,0.00014172,2]
[329829101,1718719850835,-156.81522,0.00014245,2]
[329829102,1718719850844,-151.0,0.00014245,2]
[329829103,1718719850854,-267.106826,0.00014245,2]
[329829104,1718719850863,-151.0,0.00014245,2]
[329829105,1718719850872,-181.614793,0.00014245,2]
[329829106,1718719850882,-181.614793,0.00014245,2]
[329829107,1718719850891,-151.0,0.00014245,2]
[329829108,1718719850910,-151.0,0.00014245,2]
[329829109,1718719850920,-151.0,0.00014245,2]
[329829110,1718719850928,-793.510986,0.00014245,2]
[329829111,1718719850938,-793.510986,0.00014245,2]
[329829112,1718719850947,-200.0,0.00014261,2]
[329829113,1718719850957,-160.145772,0.00014504,2]
[329829114,1718719850966,-160.145772,0.00014504,2]
[329829115,1718719850975,-151.0,0.00014504,2]
[329829116,1718719850983,-151.0,0.00014504,2]
[329829117,1718719850993,-245.270933,0.00014504,2]
[329829118,1718719851002,-201.077588,0.00014504,2]
[329829119,1718719851011,-201.077588,0.00014504,2]
[329829120,1718719851020,-151.0,0.00014504,2]
[329829121,1718719851029,-592.426673,0.00014504,2]
[329829122,1718719851039,-592.426673,0.00014504,2]
[329829123,1718719851049,-151.0,0.00014504,2]
[329829124,1718719851059,-686.635475,0.00014504,2]
[329829125,1718719851068,-686.635475,0.00014504,2]
[329829126,1718719851078,-151.0,0.00014504,2]
[329829127,1718719851088,-813.70664,0.00014504,2]
[329829128,1718719851097,-813.70664,0.00014504,2]
[329829129,1718719851107,-151.0,0.00014504,2]
[329829130,1718719851117,-151.0,0.00014504,2]
[329829131,1718719851127,-255.720834,0.00014504,2]
[329829132,1718719851137,-28714.93429932,0.00014745,2]
[329829133,1718719851147,-267.106826,0.00014745,2]
[329829134,1718719851166,-151.0,0.00014745,2]
[329829135,1718719851175,-181.614793,0.00014745,2]
[329829136,1718719851185,-181.614793,0.00014745,2]
[329829137,1718719851194,-151.0,0.00014745,2]
[329829138,1718719851204,-151.0,0.00014745,2]
[329829139,1718719851214,-210.26152,0.00014745,2]
[329829140,1718719851223,-793.510986,0.00014745,2]
[329829141,1718719851233,-793.510986,0.00014745,2]
[329829142,1718719851243,-3000.0,0.0001475,2]
[329829143,1718719851252,-411.0,0.00014875,2]
[329829144,1718719851261,-260324.18231682,0.00015,2]
[329829145,1718719851280,-2588.0,0.00015,2]
[329829146,1718719851291,-6449.56837874,0.00015,2]
[329829147,1718719851303,-5166.0,0.00015,2]
[329829148,1718719851314,-646.875,0.00015,2]
[329829149,1718719851326,-6460.5,0.00015,2]
[329829150,1718719851337,-7422.62045791,0.00015,2]
[329829151,1718719852981,-245.365237,0.00013599,2]
[329829152,1718719852991,-399.634763,0.00015,2]
[329829153,1718719853003,-1065.54883013,0.00015,2]
[329829154,1718719853014,-2492.89992234,0.00015,2]
[329829155,1718719853217,2256.5540686,0.00011016,2]
[329829156,1718719853790,-339.18860337,0.000133,2]
[329829157,1718719853800,-265.07809624,0.00013476,2]
[329829158,1718719853810,-41.49330039,0.00013476,2]
[329829159,1718719854204,-1018.11063627,0.00013397,2]
[329829160,1718719854214,-269.7383984,0.00013476,2]
[329829161,1718719854224,-157.36327219,0.00013598,2]
[329829162,1718719854233,-173.619437,0.00013599,2]
[329829163,1718719854243,-245.365237,0.00013699,2]
[329829164,1718719854253,-173.619437,0.00013699,2]
[329829165,1718719854262,-245.365237,0.00013969,2]
[329829166,1718719854271,-173.619437,0.00013969,2]
[329829167,1718719854281,-245.365237,0.0001398,2]
[329829168,1718719854291,-173.619437,0.0001398,2]
[329829169,1718719854301,-245.365237,0.00014,2]
[329829170,1718719854310,-245.365237,0.00014,2]
[329829171,1718719854320,-245.365237,0.00014,2]
[329829172,1718719854329,-805.64369309,0.00015,2]
[329829173,1718719854376,-647.55924,0.00013979,2]
[329829174,1718719854388,-258.41131317,0.00013979,2]
[329829175,1718719951890,16160.1061,0.00011075,2]
[329829176,1718720023189,151.0,0.00020469,120]
[329829178,1718720297689,151.0,0.00020469,120]
[329829179,1718720344099,6862.565222,0.00010949,2]
[329829180,1718720597604,331.42769062,0.00011043,2]
[329829181,1718720616993,389.4227621,0.00011042,2]
[329829182,1718720626306,485.946,0.0002302,120]
[329829183,1718720752213,151.0,0.00020469,120]
[329829201,1718721034241,-887.19772806,0.00011124,2]
[329829204,1718721034253,-981.0,0.00011126,2]
[329829205,1718721034263,-536.7196223,0.00011129,2]
[329829206,1718721034273,-161.20516214,0.00011143,2]
[329829207,1718721034283,-716.88,0.00011515,2]
[329829208,1718721034292,-161.20516214,0.00012922,2]
[329829209,1718721034302,-150.0,0.00013298,2]
[329829210,1718721034312,-500.0,0.00013299,2]
[329829211,1718721034321,-28434.44330936,0.00013299,2]
[329829212,1718721034335,-5121.35757882,0.00013299,2]
[329829213,1718721034346,-6506.3999,0.00013299,2]
[329829214,1718721034358,-360.67999992,0.00013299,2]
[329829215,1718721034369,-1913.12,0.00013299,2]
[329829216,1718721034851,-11217.04,0.00013299,2]
[329829219,1718721034864,-46446.9592119,0.00013299,2]
[329829221,1718721034874,-250.0,0.00013357,2]
[329829222,1718721034884,-250.0,0.0001338,2]
[329829224,1718721034894,-241.4565183,0.00013475,2]
[329829225,1718721034904,-1375.5,0.00013481,2]
[329829226,1718721034913,-163.39,0.00013487,2]
[329829227,1718721034924,-635.46,0.00013489,2]
[329829228,1718721034934,-167.45,0.00013574,2]
[329829229,1718721034943,-468.82,0.00013699,2]
[329829230,1718721034953,-169.2,0.00013699,2]
[329829231,1718721034963,-716.88,0.00013779,2]
[329829232,1718721034972,-176.03,0.00013844,2]
[329829233,1718721034982,-5585.42962564,0.00013968,2]
[329829234,1718721034992,-210.0,0.00014628,2]
[329829235,1718721035003,-1000.0,0.00014638,2]
[329829236,1718721035012,-161.20516214,0.000147,2]
[329829237,1718721035022,-339.81088628,0.00014798,2]
[329829238,1718721035031,-172.25146249,0.000148,2]
[329829239,1718721035040,-22305.80947093,0.000148,2]
[329829240,1718721035050,-300.0,0.00014804,2]
[329829241,1718721035060,-309.05474805,0.00014818,2]
[329829242,1718721035070,-300.0,0.0001485,2]
[329829243,1718721035079,-1905.39621,0.0001485,2]
[329829244,1718721035089,-300.0,0.00014856,2]
[329829245,1718721035104,-1500.0,0.00014861,2]
[329829246,1718721035114,-300.0,0.00014865,2]
[329829247,1718721035123,-200.0,0.00014879,2]
[329829248,1718721035133,-500.0,0.00014879,2]
[329829249,1718721035143,-200.0,0.00014879,2]
[329829250,1718721035153,-500.0,0.00014879,2]
[329829251,1718721035162,-200.0,0.0001488,2]
[329829252,1718721035171,-200.0,0.0001488,2]
[329829253,1718721035182,-500.0,0.0001488,2]
[329829254,1718721035192,-200.0,0.0001488,2]
[329829255,1718721035202,-200.0,0.0001488,2]
[329829256,1718721035212,-200.0,0.0001488,2]
[329829257,1718721035222,-1000.0,0.0001488,2]
[329829258,1718721035231,-200.0,0.0001488,2]
[329829259,1718721035241,-500.0,0.0001488,2]
[329829260,1718721035254,-500.0,0.0001488,2]
[329829261,1718721035269,-500.0,0.0001488,2]
[329829262,1718721035280,-500.0,0.0001488,2]
[329829263,1718721035289,-200.0,0.0001488,2]
[329829264,1718721035299,-200.0,0.0001488,2]
[329829265,1718721035311,-254.44929041,0.00014888,2]
[329829266,1718721035322,-67141.54982852,0.00014889,2]
[329829267,1718721035335,-57605.30077148,0.00014889,2]
[329829268,1718721035345,-150.0,0.00014889,2]
[329829269,1718721035356,-1792.04361871,0.00014897,2]
[329829270,1718721035366,-605797.24196317,0.00014898,2]
[329829271,1718721035376,-1009.32521494,0.00014898,5]
[329829272,1718721035387,-783.0,0.00014899,2]
[329829273,1718721035397,-245000.0,0.00014899,2]
[329829274,1718721035407,-199.86481268,0.000149,2]
[329829275,1718721035417,-393.71684942,0.000149,2]
[329829276,1718721035428,-300.0,0.00014919,2]
[329829277,1718721035439,-500.0,0.00014925,2]
[329829278,1718721035450,-500.0,0.00014925,2]
[329829279,1718721035461,-500.0,0.00014925,2]
[329829280,1718721035472,-500.0,0.00014925,2]
[329829281,1718721035482,-500.0,0.00014925,2]
[329829282,1718721035492,-360.4084,0.00014925,2]
[329829283,1718721035506,-1000.0,0.00014925,2]
[329829284,1718721035518,-1000.0,0.00014925,2]
[329829285,1718721035528,-1000.0,0.00014925,2]
[329829286,1718721035537,-1000.0,0.00014925,2]
[329829287,1718721035548,-1000.0,0.00014925,2]
[329829288,1718721035558,-1000.0,0.00014925,2]
[329829289,1718721035567,-1000.0,0.00014925,2]
[329829290,1718721035576,-1000.0,0.00014925,2]
[329829291,1718721035586,-1000.0,0.00014925,2]
[329829292,1718721035596,-1000.0,0.00014925,2]
[329829293,1718721035606,-520.492,0.00014925,2]
[329829294,1718721035616,-300.0,0.00014964,2]
[329829295,1718721035626,-96049.9810587,0.00014987,2]
[329829296,1718721035637,-7478.6887732,0.00014987,2]
[329829297,1718721035647,-2902.8850231,0.00014987,2]
[329829298,1718721035657,-2318.16325766,0.00014997,2]
[329829299,1718721035669,-33819.00710355,0.00014998,2]
[329829300,1718721035679,-1958.94027733,0.00014999,2]
[329829301,1718721035688,-318209.5654677,0.00015,2]
[329829310,1718721040125,-3390.20012,0.00011123,2]
[329829314,1718721040135,-702.0,0.00014899,2]
[329829317,1718721040147,-979.47013867,0.00014999,2]
[329829320,1718721040158,-1131.61927236,0.00015,2]
[329829323,1718721040171,-5569.20012903,0.00015,2]
[329829327,1718721040184,-692.51,0.00015,2]
[329829329,1718721040196,-65015.0,0.00015,2]
[329829330,1718721040209,-2034.24918094,0.00015,2]
[329829331,1718721040222,-1102.25429117,0.00015,2]
[329829332,1718721040234,-734.70866164,0.00015,2]
[329829333,1718721040246,-7962.14027388,0.00015,2]
[329829334,1718721040260,-328.145,0.00015,2]
[329829335,1718721040643,-1022.7850004,0.00013474,2]
[329829338,1718721040656,-302.93661327,0.00013474,2]
[329829339,1718721040668,-676.80206335,0.00013474,2]
[329829340,1718721040678,-18808.49793665,0.00015,2]
[329829341,1718721040690,-29681.59744606,0.00015,2]
[329829342,1718721040702,-11113.42620453,0.00015,2]
[329829343,1718721040714,-751.980007,0.00015,2]
[329829398,1718721044192,-489.73506933,0.00014999,2]
[329829402,1718721044202,-10212.96793323,0.00015,2]
[329829407,1718721044214,-2046.04204809,0.00015,2]
[329829412,1718721044225,-508.1055248,0.00015,2]
[329829417,1718721044236,-701.33067573,0.00015,2]
[329829422,1718721044248,-127649.33787258,0.00015,2]
[329829426,1718721044262,-485.02171734,0.00015,2]
[329829429,1718721044274,-697.39124285,0.00015,2]
[329829432,1718721044285,-122000.09227331,0.00015,2]
[329829451,1718721048227,-831.51467711,0.00015,2]
[329829452,1718721048238,-32651.41761348,0.00015,2]
[329829453,1718721048251,-7085.1,0.00015,2]
[329829454,1718721048262,-3946.5,0.00015,2]
[329829455,1718721048277,-7265.7,0.00015,2]
[329829456,1718721048288,-516.21750002,0.00015,2]
[329829457,1718721048300,-500.0,0.00015,2]
[329829458,1718721048311,-839.57267957,0.00015,2]
[329829459,1718721048323,-1197.39698254,0.00015,2]
[329829465,1718721344779,151.0,0.00020469,120]
[329829466,1718721385569,-600.0,0.00011679,2]
[329829469,1718721609650,151.0,0.00020469,120]
[329829470,1718721832650,1591.66,0.00018,30]
[329829471,1718721899835,151.0,0.00020469,120]
[329829478,1718721988984,689.93,0.00010911,2]
[329829499,1718722232118,-3390.20012,0.00011576,2]
[329829501,1718722232128,-885.10468419,0.00011577,2]
[329829504,1718722232138,-300.0,0.00011799,2]
[329829505,1718722232149,-150.0,0.00011799,2]
[329829506,1718722232158,-5598.72075008,0.000118,2]
[329829507,1718722232170,-1119.44553033,0.000118,2]
[329829509,1718722232182,-856.26166783,0.000118,2]
[329829511,1718722232194,-9060.27347365,0.000118,2]
[329829513,1718722232204,-150.0,0.00012438,2]
[329829514,1718722232213,-1000.0,0.00012746,2]
[329829515,1718722232222,-590.63,0.00012824,2]
[329829516,1718722232232,-2259.07,0.00012912,2]
[329829517,1718722232242,-420.0,0.00012955,2]
[329829518,1718722232252,-210.0,0.00012979,2]
[329829519,1718722232263,-28630.29506476,0.0001298,2]
[329829520,1718722232272,-188.12,0.00013032,2]
[329829521,1718722232282,-200.0,0.00013097,2]
[329829522,1718722232291,-689.93,0.00013175,2]
[329829523,1718722232302,-250.0,0.0001318,2]
[329829524,1718722232317,-250.0,0.00013271,2]
[329829525,1718722232327,-917.14,0.00013668,2]
[329829526,1718722232337,-1429.49,0.00013699,2]
[329829527,1718722232346,-150.63,0.00013699,2]
[329829528,1718722232355,-494.14,0.00013699,2]
[329829529,1718722232364,-1302.1643,0.000138,2]
[329829530,1718722232373,-192.38,0.00013858,2]
[329829531,1718722232383,-219.9,0.0001389,3]
[329829532,1718722232393,-84676.15157331,0.000139,2]
[329829534,1718722232600,-46529.83394395,0.000139,2]
[329829536,1718722232614,-3122.66084388,0.000139,2]
[329829538,1718722232628,-15671.35363886,0.000139,2]
[329829540,1718722232639,-12900.50321601,0.000139,2]
[329829542,1718722232652,-8293.33138716,0.000139,2]
[329829544,1718722232662,-172.25146249,0.000139,2]
[329829546,1718722232673,-20446.99201501,0.000139,2]
[329829548,1718722232684,-262.4778996,0.000139,2]
[329829550,1718722232694,-960.44526062,0.000139,2]
[329829552,1718722232705,-168.694278,0.00013979,2]
[329829554,1718722232715,-34239.49553371,0.0001398,2]
[329829557,1718722232728,-1094.72364763,0.0001398,2]
[329829559,1718722232740,-359.16532702,0.0001398,2]
[329829561,1718722232752,-759.08000022,0.0001398,2]
[329829563,1718722232764,-803.60000004,0.0001398,2]
[329829565,1718722232776,-415.09721781,0.0001398,2]
[329829568,1718722232787,-719.56763967,0.0001398,2]
[329829570,1718722232798,-1082.26155855,0.0001398,2]
[329829572,1718722232816,-1231.85132041,0.0001398,2]
[329829574,1718722232827,-311.84172578,0.0001398,2]
[329829576,1718722232839,-2500.008256,0.0001398,2]
[329829611,1718722240209,-285.88023947,0.00011739,2]
[329829617,1718722240222,-638.89389986,0.00011739,2]
[329829620,1718722240234,-403.80780873,0.00011739,2]
[329829624,1718722240247,-764.48504295,0.00011739,2]
[329829627,1718722240260,-249.36906399,0.00011739,2]
[329829629,1718722240271,-6292.53093601,0.0001398,2]
[329829631,1718722240283,-327.445,0.0001398,2]
[329829633,1718722240295,-7042.92,0.0001398,2]
[329829635,1718722240307,-532.51804514,0.0001398,2]
[329829674,1718722241202,-335.125,0.0001398,2]
[329829675,1718722241215,-346.7403356,0.0001398,2]
[329829676,1718722241227,-3330.42770352,0.0001398,2]
[329829677,1718722241241,-855.98678283,0.0001398,2]
[329829678,1718722241252,-1309.0258857,0.0001398,2]
[329829679,1718722241263,-680.81665826,0.0001398,2]
[329829680,1718722241404,-13502.39002323,0.0001398,2]
[329829681,1718722241416,-1291.95839779,0.0001398,2]
[329829682,1718722241428,-471.26289908,0.0001398,2]
[329829683,1718722241439,-6840.44346774,0.0001398,2]
[329829684,1718722241451,-281.186742,0.0001398,2]
[329829685,1718722241462,-461.74,0.0001398,2]
[329829686,1718722241476,-314.33454932,0.0001398,2]
[329829687,1718722241487,-401.40105203,0.0001398,2]
[329829688,1718722241498,-749.34518919,0.0001398,2]
[329829689,1718722241509,-3244.00977272,0.0001398,2]
[329829690,1718722241525,-8011.06226156,0.0001398,2]
[329829691,1718722241536,-443.0644103,0.0001398,2]
[329829693,1718722241548,-501.7001713,0.0001398,2]
[329829695,1718722241560,-3027.95925375,0.0001398,2]
[329829697,1718722241577,-301.394501,0.0001398,2]
[329829699,1718722241588,-5198.16634652,0.0001398,2]
[329829701,1718722241600,-4565.785,0.0001398,2]
[329829703,1718722241611,-344.62936635,0.0001398,2]
[329829723,1718722241787,-2215.84226352,0.0001398,2]
[329829895,1718722246671,-339.81088627,0.000139,2]
[329829899,1718722246682,-6860.18911373,0.0001398,2]
[329829902,1718722246694,-361.6920653,0.0001398,2]
[329829904,1718722246707,-667.35,0.0001398,2]
[329829907,1718722246720,-4824.88579712,0.0001398,2]
[329829908,1718722246732,-1038.02450197,0.0001398,2]
[329829912,1718722246779,-520569.1506819,0.0001398,2]
[329829913,1718722246791,-5934.35859859,0.0001398,2]
[329829914,1718722246803,-1057.93898377,0.0001398,2]
[329829915,1718722246815,-270355.76105366,0.0001398,2]
[329829916,1718722246829,-843102.85453733,0.00014,2]
[329829917,1718722246840,-26934.00975201,0.00014,2]
[329829918,1718722246852,-271796.3511432,0.00014,2]
[329829919,1718722246863,-654.68,0.00014,2]
[329829920,1718722246875,-707.02783621,0.00014,2]
[329829921,1718722246887,-1337.40941218,0.00014,2]
[329829922,1718722246899,-2652.80679033,0.00014,2]
[329829923,1718722246911,-1335.12,0.00014,2]
[329829924,1718722246923,-1061.22392756,0.00014,2]
[329829927,1718722247715,-326.88731882,0.0001397,3]
[329829983,1718722253416,13795.54516178,0.00010911,2]
[329829984,1718722337788,305.0,0.00010911,2]
[329829985,1718722338896,155.0,0.00010911,2]
[329829986,1718722340407,14640.91144567,0.00010911,2]
[329829987,1718722341122,348.2371921,0.00010911,2]
[329829988,1718722345398,42110.1376595,0.00010911,2]
[329829990,1718722494701,151.0,0.00020469,120]
[329829992,1718722824969,151.0,0.00020469,120]
[329829999,1718723227341,151.0,0.00020469,120]
[329830008,1718723309432,798.96,8.295e-05,2]
[329830010,1718723361672,290.17190073,8.295e-05,2]
[329830011,1718723368577,948.81827996,8.295e-05,2]
[329830012,1718723375621,299.93324415,8.295e-05,2]
[329830013,1718723384519,1036.44048792,8.295e-05,2]
[329830016,1718723432572,-155.0,0.00010208,2]
[329830017,1718723432582,-155.0,0.00010208,2]
[329830019,1718723432591,-264.17463857,0.00010208,2]
[329830021,1718723432600,-258.76869264,0.00010209,2]
[329830029,1718723435809,-278.26308844,0.00010209,2]
[329830030,1718723435820,-343.12993427,0.00010209,2]
[329830045,1718723438979,-477.46348694,0.00010209,2]
[329830046,1718723438992,-718.44300226,0.00010209,2]
[329830047,1718723439006,-873.81182588,0.00010209,2]
[329830049,1718723439019,-5140.21623878,0.00010209,2]
[329830051,1718723439029,-3390.20012,0.0001021,2]
[329830053,1718723439040,-328.66478873,0.0001021,2]
[329830055,1718723439049,-158.57633162,0.0001021,2]
[329830057,1718723439060,-155.0,0.00010211,2]
[329830059,1718723439070,-300.0,0.00010214,2]
[329830061,1718723439080,-150.0,0.00010214,2]
[329830063,1718723439090,-14410.89246805,0.00010215,2]
[329830064,1718723439103,-1361.36,0.00010215,2]
[329830065,1718723439115,-875.33626534,0.00010215,2]
[329830067,1718723439128,-396.96657,0.00010215,2]
[329830069,1718723439142,-3904.22469661,0.00010215,2]
[329830071,1718723439152,-800.0,0.00010285,2]
[329830073,1718723439163,-2267.01701663,0.0001032,2]
[329830075,1718723439173,-250.0,0.00010321,2]
[329830077,1718723439183,-22174.69,0.00010321,2]
[329830079,1718723439193,-299.99,0.00010321,2]
[329830081,1718723439203,-2669.31,0.00010329,2]
[329830083,1718723439212,-2406.01,0.00010497,2]
[329830085,1718723439222,-3101.78,0.00010497,2]
[329830086,1718723439232,-250.0,0.00010547,2]
[329830087,1718723439243,-827.32,0.00010547,2]
[329830088,1718723439255,-427.94,0.00010547,2]
[329830089,1718723439267,-798.96,0.00010559,2]
[329830090,1718723439276,-154.68170655,0.00010811,2]
[329830091,1718723439285,-2539.45,0.00010899,2]
[329830092,1718723439295,-10118.46542935,0.00010906,2]
[329830093,1718723439307,-76075.66059871,0.00010906,2]
[329830094,1718723439316,-289.68,0.00010907,2]
[329830095,1718723439326,-545.84909757,0.00010909,2]
[329830096,1718723439336,-155.22699187,0.00010909,2]
[329830097,1718723439346,-321.75766818,0.00010909,2]
[329830098,1718723439355,-676.08366128,0.00010909,2]
[329830099,1718723439365,-155.6327124,0.00010909,2]
[329830100,1718723439374,-240.93311441,0.00010909,2]
[329830101,1718723439384,-205.60285074,0.00010909,2]
[329830111,1718723439666,-1974.36334918,0.00010909,2]
[329830112,1718723439683,-156.14373959,0.00010909,2]